[Event "Early-Titled-Tuesday-Blitz-November-28-2023"]
[Site "Chess.com"]
[Date "2023.11.28"]
[Round "7"]
[White "Alexander_Donchenko"]
[Black "rasmussvane"]
[Result "1-0"]
[WhiteElo "2905"]
[BlackElo "2992"]
[TimeControl "180+1"]
[EndTime "9:24:37 PST"]
[Termination "Alexander_Donchenko won on time"]

1. Nf3 {[%clk 0:03:00.9]} 1... d5 {[%clk 0:02:58.6]} 2. g3 {[%clk 0:03:01.3]}
2... Nd7 {[%clk 0:02:52]} 3. d4 {[%clk 0:03:00.8]} 3... Nb6 {[%clk 0:02:50.3]}
4. Bg2 {[%clk 0:03:01.1]} 4... Bf5 {[%clk 0:02:48.3]} 5. O-O {[%clk 0:03:01.2]}
5... e6 {[%clk 0:02:45.9]} 6. b3 {[%clk 0:03:01.4]} 6... h6 {[%clk 0:02:42.3]}
7. c4 {[%clk 0:03:01.1]} 7... c6 {[%clk 0:02:41.8]} 8. Nbd2 {[%clk 0:02:56.5]}
8... Nf6 {[%clk 0:02:40.1]} 9. Bb2 {[%clk 0:02:55.6]} 9... Be7 {[%clk 0:02:37]}
10. Ne5 {[%clk 0:02:55.7]} 10... O-O {[%clk 0:02:34.6]} 11. Re1 {[%clk
0:02:52.8]} 11... a5 {[%clk 0:02:32.3]} 12. a3 {[%clk 0:02:50]} 12... Re8 {[%clk
0:02:24.4]} 13. c5 {[%clk 0:02:35.3]} 13... Nbd7 {[%clk 0:02:21.5]} 14. Nxd7
{[%clk 0:02:35.6]} 14... Nxd7 {[%clk 0:02:19.2]} 15. b4 {[%clk 0:02:35.7]} 15...
Bf6 {[%clk 0:02:03.8]} 16. e4 {[%clk 0:02:35.4]} 16... dxe4 {[%clk 0:02:01.9]}
17. Nxe4 {[%clk 0:02:36.3]} 17... Bxe4 {[%clk 0:02:01.5]} 18. Bxe4 {[%clk
0:02:36.6]} 18... Qc7 {[%clk 0:01:52.1]} 19. Bc2 {[%clk 0:02:33.8]} 19... Nf8
{[%clk 0:01:50.4]} 20. Bc3 {[%clk 0:02:18.1]} 20... axb4 {[%clk 0:01:42.2]} 21.
axb4 {[%clk 0:02:19]} 21... Rxa1 {[%clk 0:01:31]} 22. Qxa1 {[%clk 0:02:19.9]}
22... Rd8 {[%clk 0:01:30.9]} 23. Kg2 {[%clk 0:02:08.1]} 23... g6 {[%clk
0:01:28]} 24. h4 {[%clk 0:01:57.4]} 24... h5 {[%clk 0:01:28.1]} 25. Rd1 {[%clk
0:01:53.3]} 25... Bg7 {[%clk 0:01:27.4]} 26. Be4 {[%clk 0:01:41.1]} 26... Qd7
{[%clk 0:01:16]} 27. Qa7 {[%clk 0:01:34]} 27... Qc8 {[%clk 0:00:51.2]} 28. b5
{[%clk 0:01:17.6]} 28... Nd7 {[%clk 0:00:50]} 29. Ba5 {[%clk 0:01:12.4]} 29...
Rf8 {[%clk 0:00:46.7]} 30. bxc6 {[%clk 0:00:59.4]} 30... bxc6 {[%clk 0:00:46.2]}
31. Bc7 {[%clk 0:01:00.1]} 31... Nb8 {[%clk 0:00:24.8]} 32. Rb1 {[%clk
0:00:58.5]} 32... Na6 {[%clk 0:00:18.7]} 33. Bd6 {[%clk 0:00:57.6]} 33... Qa8
{[%clk 0:00:09.8]} 34. Qxa8 {[%clk 0:00:51.8]} 34... Rxa8 {[%clk 0:00:10.7]} 35.
Bxc6 {[%clk 0:00:52.2]} 35... Rd8 {[%clk 0:00:09.2]} 36. Rb6 {[%clk 0:00:49.3]}
36... Nc7 {[%clk 0:00:01.3]} 37. Bxc7 {[%clk 0:00:48.7]} 37... Rxd4 {[%clk
0:00:02]} 38. Bf4 {[%clk 0:00:42.6]} 38... Rc4 {[%clk 0:00:01.2]} 39. Be3 {[%clk
0:00:41.5]} 1-0

[Event "Early-Titled-Tuesday-Blitz-November-28-2023"]
[Site "Chess.com"]
[Date "2023.11.28"]
[Round "7"]
[White "ural58"]
[Black "Goryachkina"]
[Result "0-1"]
[WhiteElo "2463"]
[BlackElo "2615"]
[TimeControl "180+1"]
[EndTime "9:24:38 PST"]
[Termination "Goryachkina won by resignation"]

1. e4 {[%clk 0:02:49.5]} 1... c5 {[%clk 0:02:59.5]} 2. b3 {[%clk 0:02:48]} 2...
g6 {[%clk 0:02:56]} 3. Bb2 {[%clk 0:02:47.9]} 3... Nf6 {[%clk 0:02:56.1]} 4. e5
{[%clk 0:02:48.2]} 4... Nd5 {[%clk 0:02:56.4]} 5. Nc3 {[%clk 0:02:48.5]} 5...
Nxc3 {[%clk 0:02:53.8]} 6. dxc3 {[%clk 0:02:48.7]} 6... d5 {[%clk 0:02:41.6]} 7.
exd6 {[%clk 0:02:46.4]} 7... Qxd6 {[%clk 0:02:41.4]} 8. Qxd6 {[%clk 0:02:46.3]}
8... exd6 {[%clk 0:02:41.6]} 9. O-O-O {[%clk 0:02:46.1]} 9... Nc6 {[%clk
0:02:38.2]} 10. c4 {[%clk 0:02:44.8]} 10... Rg8 {[%clk 0:02:37.9]} 11. Ne2
{[%clk 0:02:39.5]} 11... Be6 {[%clk 0:02:30.5]} 12. g3 {[%clk 0:02:34.9]} 12...
O-O-O {[%clk 0:02:29.8]} 13. Bg2 {[%clk 0:02:34.5]} 13... Bh6+ {[%clk
0:02:28.6]} 14. Kb1 {[%clk 0:02:33.7]} 14... Rge8 {[%clk 0:02:26.6]} 15. Rhe1
{[%clk 0:02:33.6]} 15... Bf5 {[%clk 0:02:15.4]} 16. Bf6 {[%clk 0:02:25.2]} 16...
Nb4 {[%clk 0:02:09.6]} 17. Kb2 {[%clk 0:02:09.9]} 17... Bxc2 {[%clk 0:02:06.5]}
18. Ra1 {[%clk 0:01:59.1]} 18... Bf5 {[%clk 0:01:56.1]} 19. Bxd8 {[%clk
0:01:59]} 19... Nd3+ {[%clk 0:01:47.4]} 20. Kc3 {[%clk 0:01:57.3]} 20... Nxe1
{[%clk 0:01:35.9]} 21. Rxe1 {[%clk 0:01:54.7]} 21... Rxd8 {[%clk 0:01:24]} 22.
Nf4 {[%clk 0:01:47]} 22... Bxf4 {[%clk 0:01:21.7]} 23. gxf4 {[%clk 0:01:47.3]}
23... Be6 {[%clk 0:01:22.2]} 24. Be4 {[%clk 0:01:38]} 24... b6 {[%clk
0:01:21.5]} 25. f5 {[%clk 0:01:37.6]} 25... gxf5 {[%clk 0:01:20.8]} 26. Bd3
{[%clk 0:01:36.2]} 26... Rg8 {[%clk 0:01:20.6]} 27. Re3 {[%clk 0:01:35.4]} 27...
Rg2 {[%clk 0:01:14.7]} 28. Rh3 {[%clk 0:01:35]} 28... Rxf2 {[%clk 0:01:14.6]}
29. Rxh7 {[%clk 0:01:35.3]} 29... Rxa2 {[%clk 0:01:13.6]} 30. Bc2 {[%clk
0:01:31.2]} 30... Ra1 {[%clk 0:01:10.7]} 31. h4 {[%clk 0:01:20.2]} 31... Rh1
{[%clk 0:01:09.8]} 32. h5 {[%clk 0:01:19.2]} 32... Rh3+ {[%clk 0:01:05.6]} 33.
Kd2 {[%clk 0:01:18.6]} 33... Rh2+ {[%clk 0:01:05.5]} 34. Kd1 {[%clk 0:01:16.3]}
34... f4 {[%clk 0:01:05.4]} 35. Be4 {[%clk 0:01:01.6]} 35... Bg4+ {[%clk
0:00:57.9]} 36. Kc1 {[%clk 0:01:01.4]} 36... f5 {[%clk 0:00:54.3]} 37. Rh8+
{[%clk 0:00:59]} 37... Kd7 {[%clk 0:00:54.2]} 38. Bb7 {[%clk 0:00:55.5]} 38...
Rxh5 {[%clk 0:00:46.3]} 39. Ra8 {[%clk 0:00:55.1]} 39... f3 {[%clk 0:00:44.9]}
40. Kd2 {[%clk 0:00:53.9]} 40... Rh2+ {[%clk 0:00:44.2]} 41. Ke3 {[%clk
0:00:48.9]} 41... Re2+ {[%clk 0:00:42.3]} 42. Kd3 {[%clk 0:00:47.5]} 42... f2
{[%clk 0:00:37.3]} 43. Rxa7 {[%clk 0:00:48.4]} 43... Re1 {[%clk 0:00:33.6]} 44.
Bd5+ {[%clk 0:00:43.6]} 44... Kd8 {[%clk 0:00:31.3]} 45. Ra8+ {[%clk 0:00:43]}
45... Ke7 {[%clk 0:00:31.6]} 0-1

[Event "Early-Titled-Tuesday-Blitz-November-28-2023"]
[Site "Chess.com"]
[Date "2023.11.28"]
[Round "7"]
[White "FARIZA2018"]
[Black "Andrei_Skvortsov"]
[Result "0-1"]
[WhiteElo "2534"]
[BlackElo "2732"]
[TimeControl "180+1"]
[EndTime "9:24:39 PST"]
[Termination "Andrei_Skvortsov won on time"]

1. e4 {[%clk 0:03:00.9]} 1... e6 {[%clk 0:03:00.3]} 2. d4 {[%clk 0:03:00.1]}
2... d5 {[%clk 0:03:00.6]} 3. Nd2 {[%clk 0:03:00.6]} 3... c5 {[%clk 0:03:00]} 4.
exd5 {[%clk 0:03:00.3]} 4... Qxd5 {[%clk 0:02:58.7]} 5. Ngf3 {[%clk 0:03:00.4]}
5... cxd4 {[%clk 0:02:58.4]} 6. Bc4 {[%clk 0:03:00.6]} 6... Qd7 {[%clk
0:02:56.9]} 7. O-O {[%clk 0:03:00.3]} 7... Nc6 {[%clk 0:02:56.9]} 8. Nb3 {[%clk
0:03:00.8]} 8... Nf6 {[%clk 0:02:54.8]} 9. Nbxd4 {[%clk 0:03:00.6]} 9... Bd6
{[%clk 0:02:40]} 10. Bg5 {[%clk 0:02:50.7]} 10... O-O {[%clk 0:02:34.9]} 11. Re1
{[%clk 0:02:36.7]} 11... Nd5 {[%clk 0:02:31]} 12. Bxd5 {[%clk 0:02:24.1]} 12...
exd5 {[%clk 0:02:30.6]} 13. Qd2 {[%clk 0:02:23.7]} 13... a6 {[%clk 0:02:23.5]}
14. c3 {[%clk 0:02:22.3]} 14... Qc7 {[%clk 0:02:19.8]} 15. h3 {[%clk 0:02:20.7]}
15... Bd7 {[%clk 0:02:18.7]} 16. Rad1 {[%clk 0:02:20.2]} 16... Rfe8 {[%clk
0:02:16.9]} 17. Nc2 {[%clk 0:02:15.3]} 17... h6 {[%clk 0:02:03.5]} 18. Be3
{[%clk 0:02:10.2]} 18... Ne7 {[%clk 0:01:57.5]} 19. Nb4 {[%clk 0:01:56.6]} 19...
Bxb4 {[%clk 0:01:44.3]} 20. cxb4 {[%clk 0:01:55.7]} 20... Nf5 {[%clk 0:01:41.8]}
21. Bf4 {[%clk 0:01:47.6]} 21... Rxe1+ {[%clk 0:01:34.2]} 22. Rxe1 {[%clk
0:01:47]} 22... Qc4 {[%clk 0:01:20.5]} 23. Ne5 {[%clk 0:01:43.2]} 23... Qb5
{[%clk 0:01:11.2]} 24. b3 {[%clk 0:00:46.6]} 24... Be6 {[%clk 0:01:10]} 25. a4
{[%clk 0:00:46.6]} 25... Qb6 {[%clk 0:01:08.5]} 26. Nd3 {[%clk 0:00:43.9]} 26...
Nh4 {[%clk 0:00:57]} 27. Nc5 {[%clk 0:00:40.5]} 27... Bxh3 {[%clk 0:00:54.4]}
28. Bg3 {[%clk 0:00:14.1]} 28... Qg6 {[%clk 0:00:49.3]} 29. Qxd5 {[%clk
0:00:09.1]} 29... Bxg2 {[%clk 0:00:44.5]} 30. Qd7 {[%clk 0:00:06.5]} 30... Bc6
{[%clk 0:00:41.4]} 31. Qd1 {[%clk 0:00:05.3]} 31... Nf3+ {[%clk 0:00:40.8]} 32.
Kf1 {[%clk 0:00:05.7]} 32... Qh5 {[%clk 0:00:35.4]} 0-1

[Event "Early-Titled-Tuesday-Blitz-November-28-2023"]
[Site "Chess.com"]
[Date "2023.11.28"]
[Round "7"]
[White "SharapovEvgeny"]
[Black "Kovalyov_Eduard"]
[Result "0-1"]
[WhiteElo "2589"]
[BlackElo "2472"]
[TimeControl "180+1"]
[EndTime "9:24:43 PST"]
[Termination "Kovalyov_Eduard won by resignation"]

1. e4 {[%clk 0:03:00.2]} 1... e5 {[%clk 0:03:00]} 2. Nf3 {[%clk 0:03:00]} 2...
Nc6 {[%clk 0:03:00.3]} 3. Bb5 {[%clk 0:03:00]} 3... a6 {[%clk 0:03:00.6]} 4. Ba4
{[%clk 0:03:00.3]} 4... Nf6 {[%clk 0:03:00.6]} 5. d3 {[%clk 0:03:00.4]} 5... b5
{[%clk 0:02:58.9]} 6. Bb3 {[%clk 0:03:00.2]} 6... Bc5 {[%clk 0:02:59.6]} 7. O-O
{[%clk 0:02:59.7]} 7... O-O {[%clk 0:02:59.6]} 8. Nxe5 {[%clk 0:02:59.4]} 8...
Nxe5 {[%clk 0:02:58.9]} 9. d4 {[%clk 0:03:00]} 9... d6 {[%clk 0:02:33.8]} 10.
dxc5 {[%clk 0:02:54.4]} 10... dxc5 {[%clk 0:02:33.8]} 11. Qxd8 {[%clk 0:02:54]}
11... Rxd8 {[%clk 0:02:33.6]} 12. Bf4 {[%clk 0:02:54.1]} 12... Re8 {[%clk
0:02:31.2]} 13. c3 {[%clk 0:02:51.9]} 13... Nd3 {[%clk 0:02:15.6]} 14. Bxc7
{[%clk 0:02:49.8]} 14... Nxb2 {[%clk 0:02:05.8]} 15. f3 {[%clk 0:02:48.1]} 15...
Be6 {[%clk 0:02:01.1]} 16. Bxe6 {[%clk 0:02:44.5]} 16... Rxe6 {[%clk 0:02:00.7]}
17. Nd2 {[%clk 0:02:43.9]} 17... Rc8 {[%clk 0:01:59.5]} 18. Bf4 {[%clk 0:02:42]}
18... Na4 {[%clk 0:01:58.4]} 19. c4 {[%clk 0:02:32.6]} 19... b4 {[%clk
0:01:58.1]} 20. Nb3 {[%clk 0:02:29.7]} 20... Nd7 {[%clk 0:01:52.5]} 21. Rfd1
{[%clk 0:02:27.7]} 21... Ndb6 {[%clk 0:01:46.8]} 22. Na5 {[%clk 0:02:11.5]}
22... Nc3 {[%clk 0:01:41.2]} 23. Rd2 {[%clk 0:02:06]} 23... h6 {[%clk
0:01:39.8]} 24. Kf2 {[%clk 0:01:52.2]} 24... g5 {[%clk 0:01:37.1]} 25. Be3
{[%clk 0:01:49.3]} 25... Kg7 {[%clk 0:01:34.6]} 26. Rc1 {[%clk 0:01:47.1]} 26...
Kg6 {[%clk 0:01:32.2]} 27. g4 {[%clk 0:01:43.2]} 27... Rf6 {[%clk 0:01:22.8]}
28. Kg3 {[%clk 0:01:41.5]} 28... Re6 {[%clk 0:01:22.1]} 29. Rcc2 {[%clk
0:01:40.1]} 29... Kf6 {[%clk 0:01:11.6]} 30. h4 {[%clk 0:01:38.2]} 30... Kg6
{[%clk 0:01:09]} 31. hxg5 {[%clk 0:01:36.5]} 31... hxg5 {[%clk 0:01:09.1]} 32.
Rh2 {[%clk 0:01:27.2]} 32... f6 {[%clk 0:01:04.4]} 33. Nb3 {[%clk 0:01:17.7]}
33... Nxc4 {[%clk 0:00:55.4]} 34. Bxc5 {[%clk 0:01:15.7]} 34... a5 {[%clk
0:00:48.9]} 35. Bd4 {[%clk 0:01:09.6]} 35... Nb5 {[%clk 0:00:39.5]} 36. Ba1
{[%clk 0:01:04.7]} 36... a4 {[%clk 0:00:36.3]} 37. Na5 {[%clk 0:00:55.7]} 37...
Nba3 {[%clk 0:00:36.4]} 38. Nxc4 {[%clk 0:00:52.7]} 38... Nxc2 {[%clk
0:00:32.2]} 39. Rxc2 {[%clk 0:00:50.1]} 39... Rec6 {[%clk 0:00:31.8]} 40. Rd2
{[%clk 0:00:42.6]} 40... Rxc4 {[%clk 0:00:31.3]} 41. Rd6 {[%clk 0:00:43.3]}
41... R8c6 {[%clk 0:00:31.6]} 42. Rd7 {[%clk 0:00:42.4]} 42... Rc1 {[%clk
0:00:30.2]} 43. Bd4 {[%clk 0:00:41.9]} 43... Rd1 {[%clk 0:00:27.5]} 44. Rd5
{[%clk 0:00:37.5]} 44... Rc4 {[%clk 0:00:25.6]} 0-1

[Event "Early-Titled-Tuesday-Blitz-November-28-2023"]
[Site "Chess.com"]
[Date "2023.11.28"]
[Round "7"]
[White "Casper"]
[Black "alvarorodriguezavila"]
[Result "1-0"]
[WhiteElo "2414"]
[BlackElo "2228"]
[TimeControl "180+1"]
[EndTime "9:24:43 PST"]
[Termination "Casper won by resignation"]

1. d4 {[%clk 0:02:54.2]} 1... Nf6 {[%clk 0:02:59.7]} 2. Bf4 {[%clk 0:02:54.5]}
2... d5 {[%clk 0:02:59.4]} 3. Nd2 {[%clk 0:02:55.1]} 3... c5 {[%clk 0:03:00.3]}
4. dxc5 {[%clk 0:02:54.8]} 4... Nc6 {[%clk 0:02:59.3]} 5. Ngf3 {[%clk
0:02:53.9]} 5... e6 {[%clk 0:03:00]} 6. e3 {[%clk 0:02:53.3]} 6... Bxc5 {[%clk
0:03:00.2]} 7. Bd3 {[%clk 0:02:54]} 7... O-O {[%clk 0:02:58]} 8. c4 {[%clk
0:02:52]} 8... Re8 {[%clk 0:02:50.9]} 9. Ne5 {[%clk 0:02:44.4]} 9... Bd6 {[%clk
0:02:40.8]} 10. Nxc6 {[%clk 0:02:39]} 10... bxc6 {[%clk 0:02:41]} 11. Bxd6
{[%clk 0:02:38.8]} 11... Qxd6 {[%clk 0:02:41.3]} 12. cxd5 {[%clk 0:02:39.3]}
12... cxd5 {[%clk 0:02:39.6]} 13. O-O {[%clk 0:02:39.3]} 13... Bd7 {[%clk
0:02:39.5]} 14. Rc1 {[%clk 0:02:39.1]} 14... Rab8 {[%clk 0:02:39.4]} 15. b3
{[%clk 0:02:28.4]} 15... Rec8 {[%clk 0:02:39.7]} 16. Qe2 {[%clk 0:02:26.8]}
16... a5 {[%clk 0:02:28.7]} 17. e4 {[%clk 0:02:25]} 17... dxe4 {[%clk
0:02:28.3]} 18. Nxe4 {[%clk 0:02:24.8]} 18... Nxe4 {[%clk 0:02:21.6]} 19. Qxe4
{[%clk 0:02:25.7]} 19... g6 {[%clk 0:02:21.7]} 20. Bc4 {[%clk 0:02:20.3]} 20...
Bc6 {[%clk 0:02:17.8]} 21. Qe3 {[%clk 0:02:14.6]} 21... Rd8 {[%clk 0:02:10]} 22.
h4 {[%clk 0:02:09.4]} 22... Rbc8 {[%clk 0:01:53.3]} 23. h5 {[%clk 0:02:07.1]}
23... Qd4 {[%clk 0:01:52]} 24. Qg5 {[%clk 0:01:58.9]} 24... Qe4 {[%clk
0:01:45.9]} 25. Rc3 {[%clk 0:01:47.6]} 25... Qf5 {[%clk 0:01:41.4]} 26. Qxf5
{[%clk 0:01:26.4]} 26... gxf5 {[%clk 0:01:33.5]} 27. Rfc1 {[%clk 0:01:16.7]}
27... Be8 {[%clk 0:01:15.1]} 28. h6 {[%clk 0:01:05.9]} 28... Rd4 {[%clk
0:01:03.1]} 29. Bb5 {[%clk 0:00:42]} 29... Rxc3 {[%clk 0:00:44.8]} 30. Rxc3
{[%clk 0:00:42.9]} 30... Rd8 {[%clk 0:00:42.7]} 31. Rg3+ {[%clk 0:00:43.5]}
31... Kf8 {[%clk 0:00:42.3]} 32. Bxe8 {[%clk 0:00:40.6]} 32... Rxe8 {[%clk
0:00:31]} 33. Rg7 {[%clk 0:00:40.4]} 33... Ke7 {[%clk 0:00:31.7]} 34. Rxh7
{[%clk 0:00:40.4]} 34... Kf6 {[%clk 0:00:32.3]} 35. f4 {[%clk 0:00:31.3]} 35...
Kg6 {[%clk 0:00:31.7]} 36. Rg7+ {[%clk 0:00:30.1]} 36... Kxh6 {[%clk 0:00:32.3]}
37. Rxf7 {[%clk 0:00:30.5]} 37... Rc8 {[%clk 0:00:25.9]} 38. Rf6+ {[%clk
0:00:29.9]} 38... Kg7 {[%clk 0:00:24.8]} 39. Rxe6 {[%clk 0:00:30.8]} 39... Rc1+
{[%clk 0:00:24.5]} 40. Kf2 {[%clk 0:00:28.6]} 40... Rc2+ {[%clk 0:00:25.4]} 41.
Re2 {[%clk 0:00:28.8]} 41... Rxa2 {[%clk 0:00:26.3]} 42. Rxa2 {[%clk 0:00:28.8]}
1-0

[Event "Early-Titled-Tuesday-Blitz-November-28-2023"]
[Site "Chess.com"]
[Date "2023.11.28"]
[Round "7"]
[White "snowlord"]
[Black "Aradhya2000"]
[Result "0-1"]
[WhiteElo "2865"]
[BlackElo "2720"]
[TimeControl "180+1"]
[EndTime "9:24:44 PST"]
[Termination "Aradhya2000 won by resignation"]

1. e4 {[%clk 0:03:00.9]} 1... e5 {[%clk 0:02:59.2]} 2. Nf3 {[%clk 0:02:58.9]}
2... Nc6 {[%clk 0:02:59.8]} 3. Bb5 {[%clk 0:02:57.7]} 3... a6 {[%clk 0:02:59.8]}
4. Ba4 {[%clk 0:02:57.7]} 4... Nf6 {[%clk 0:03:00.1]} 5. O-O {[%clk 0:02:56.4]}
5... b5 {[%clk 0:03:00.6]} 6. Bb3 {[%clk 0:02:56.5]} 6... Bc5 {[%clk 0:03:01.3]}
7. c3 {[%clk 0:02:56.3]} 7... d6 {[%clk 0:03:01.2]} 8. a4 {[%clk 0:02:55.9]}
8... Bb7 {[%clk 0:02:59.4]} 9. d4 {[%clk 0:02:54.6]} 9... Bb6 {[%clk 0:02:59.6]}
10. Bg5 {[%clk 0:02:54.8]} 10... h6 {[%clk 0:02:57.6]} 11. Bxf6 {[%clk
0:02:55.1]} 11... Qxf6 {[%clk 0:02:57.6]} 12. Bd5 {[%clk 0:02:55.9]} 12... O-O
{[%clk 0:02:52.9]} 13. Na3 {[%clk 0:02:55.4]} 13... Rab8 {[%clk 0:02:23.7]} 14.
axb5 {[%clk 0:02:51.2]} 14... axb5 {[%clk 0:02:24.6]} 15. Nxb5 {[%clk
0:02:51.4]} 15... Nxd4 {[%clk 0:02:22]} 16. cxd4 {[%clk 0:02:38]} 16... c6
{[%clk 0:02:18.1]} 17. Nxd6 {[%clk 0:02:08.2]} 17... Qxd6 {[%clk 0:02:06.6]} 18.
dxe5 {[%clk 0:02:08.3]} 18... Qg6 {[%clk 0:02:06.7]} 19. Bb3 {[%clk 0:02:00.9]}
19... Qxe4 {[%clk 0:02:06.5]} 20. Re1 {[%clk 0:01:52]} 20... Qf4 {[%clk
0:02:06.3]} 21. e6 {[%clk 0:01:51.8]} 21... fxe6 {[%clk 0:02:05.8]} 22. Bxe6+
{[%clk 0:01:41.8]} 22... Kh8 {[%clk 0:02:05.6]} 23. Ra4 {[%clk 0:01:31.3]} 23...
Qf6 {[%clk 0:02:03.6]} 24. Qb3 {[%clk 0:00:44.5]} 24... Bc8 {[%clk 0:01:34]} 25.
Rb4 {[%clk 0:00:33.7]} 25... Bxe6 {[%clk 0:01:34]} 26. Rxe6 {[%clk 0:00:33.5]}
26... Qf5 {[%clk 0:01:34.3]} 27. Re5 {[%clk 0:00:15.8]} 27... Bxf2+ {[%clk
0:01:16.2]} 28. Kxf2 {[%clk 0:00:15.7]} 28... Qxe5 {[%clk 0:01:15.5]} 29. Rxb8
{[%clk 0:00:07.3]} 29... Qxb8 {[%clk 0:01:15.1]} 30. Qc3 {[%clk 0:00:06.6]}
30... Qxh2 {[%clk 0:01:04.4]} 31. Qxc6 {[%clk 0:00:06.4]} 31... Qe5 {[%clk
0:01:04.3]} 32. Qc2 {[%clk 0:00:03.9]} 32... Qd4+ {[%clk 0:00:59]} 33. Kg3
{[%clk 0:00:04.5]} 33... Qd6+ {[%clk 0:00:59.1]} 34. Kf2 {[%clk 0:00:04.3]}
34... Qb6+ {[%clk 0:00:59.3]} 35. Kg3 {[%clk 0:00:04.3]} 35... Rb8 {[%clk
0:00:59.3]} 36. Ne5 {[%clk 0:00:01.4]} 36... Qb3+ {[%clk 0:00:59]} 37. Qxb3
{[%clk 0:00:01.5]} 37... Rxb3+ {[%clk 0:00:58.5]} 38. Kh2 {[%clk 0:00:01.1]}
38... Rxb2 {[%clk 0:00:58.9]} 39. Kh3 {[%clk 0:00:01.9]} 39... Rb3+ {[%clk
0:00:59]} 40. g3 {[%clk 0:00:02.1]} 40... Kh7 {[%clk 0:00:59.5]} 41. Nd7 {[%clk
0:00:02.5]} 41... h5 {[%clk 0:00:59.3]} 42. Kh4 {[%clk 0:00:02.2]} 42... Kh6
{[%clk 0:00:59]} 43. Ne5 {[%clk 0:00:01.9]} 43... g5+ {[%clk 0:00:57.2]} 44. Kh3
{[%clk 0:00:02.4]} 44... h4 {[%clk 0:00:57.2]} 45. Ng4+ {[%clk 0:00:01.2]} 45...
Kg6 {[%clk 0:00:56.6]} 0-1

[Event "Early-Titled-Tuesday-Blitz-November-28-2023"]
[Site "Chess.com"]
[Date "2023.11.28"]
[Round "7"]
[White "CraiggoryC"]
[Black "Flaccidmoves"]
[Result "0-1"]
[WhiteElo "2192"]
[BlackElo "2395"]
[TimeControl "180+1"]
[EndTime "9:24:44 PST"]
[Termination "Flaccidmoves won on time"]

1. e4 {[%clk 0:03:00.9]} 1... e5 {[%clk 0:03:00.5]} 2. Nf3 {[%clk 0:03:00.6]}
2... Nc6 {[%clk 0:02:53]} 3. Bc4 {[%clk 0:03:00.1]} 3... Bc5 {[%clk 0:02:51.2]}
4. d3 {[%clk 0:02:58.2]} 4... Nf6 {[%clk 0:02:50.5]} 5. O-O {[%clk 0:02:58.4]}
5... O-O {[%clk 0:02:50.6]} 6. c3 {[%clk 0:02:53.9]} 6... d6 {[%clk 0:02:45.4]}
7. Nbd2 {[%clk 0:02:49.9]} 7... Be6 {[%clk 0:02:26.2]} 8. Bb3 {[%clk 0:02:46]}
8... Qd7 {[%clk 0:02:14.2]} 9. Nc4 {[%clk 0:02:32.2]} 9... b5 {[%clk 0:01:51]}
10. Ne3 {[%clk 0:02:28]} 10... Bb6 {[%clk 0:01:44.1]} 11. Nd5 {[%clk 0:02:12.7]}
11... Bxd5 {[%clk 0:01:41.9]} 12. exd5 {[%clk 0:02:10.1]} 12... Ne7 {[%clk
0:01:41.4]} 13. c4 {[%clk 0:02:08]} 13... bxc4 {[%clk 0:01:36.2]} 14. dxc4
{[%clk 0:02:06.4]} 14... Nf5 {[%clk 0:01:35]} 15. Bc2 {[%clk 0:02:00.2]} 15...
e4 {[%clk 0:01:32]} 16. Ng5 {[%clk 0:01:26.7]} 16... Qe7 {[%clk 0:01:20.1]} 17.
Kh1 {[%clk 0:00:16.8]} 17... h6 {[%clk 0:01:18.4]} 18. Nh3 {[%clk 0:00:16.5]}
18... Qe5 {[%clk 0:01:04.1]} 19. Re1 {[%clk 0:00:14.2]} 19... Rfe8 {[%clk
0:01:00.7]} 20. Rb1 {[%clk 0:00:10]} 20... e3 {[%clk 0:00:45.3]} 21. fxe3 {[%clk
0:00:09.8]} 21... Ne4 {[%clk 0:00:16.6]} 22. Qd3 {[%clk 0:00:07.3]} 22... Re7
{[%clk 0:00:14.6]} 23. Rf1 {[%clk 0:00:03.1]} 23... Rae8 {[%clk 0:00:13]} 24.
Qxe4 {[%clk 0:00:02.6]} 24... Qxe4 {[%clk 0:00:13]} 25. Bxe4 {[%clk 0:00:03.2]}
25... Rxe4 {[%clk 0:00:13.6]} 26. Rxf5 {[%clk 0:00:03.9]} 26... Rxc4 {[%clk
0:00:13.4]} 27. b3 {[%clk 0:00:03.5]} 27... Rc2 {[%clk 0:00:13.4]} 28. Bb2
{[%clk 0:00:02.9]} 28... Rxe3 {[%clk 0:00:12.8]} 29. Ba3 {[%clk 0:00:01.4]}
29... Ree2 {[%clk 0:00:12.4]} 0-1

[Event "Early-Titled-Tuesday-Blitz-November-28-2023"]
[Site "Chess.com"]
[Date "2023.11.28"]
[Round "7"]
[White "pinguino120"]
[Black "HalfIsCrayfish"]
[Result "1-0"]
[WhiteElo "2310"]
[BlackElo "2589"]
[TimeControl "180+1"]
[EndTime "9:24:46 PST"]
[Termination "pinguino120 won on time"]

1. e4 {[%clk 0:03:00.9]} 1... c5 {[%clk 0:03:00.3]} 2. Nf3 {[%clk 0:02:57.5]}
2... Nc6 {[%clk 0:03:00.9]} 3. Bb5 {[%clk 0:02:56.1]} 3... e6 {[%clk 0:02:58.1]}
4. O-O {[%clk 0:02:54.7]} 4... Nge7 {[%clk 0:02:56.9]} 5. Re1 {[%clk 0:02:53.1]}
5... a6 {[%clk 0:02:54]} 6. Bf1 {[%clk 0:02:52.4]} 6... d5 {[%clk 0:02:45.1]} 7.
exd5 {[%clk 0:02:50.2]} 7... Nxd5 {[%clk 0:02:45.7]} 8. d4 {[%clk 0:02:48.2]}
8... cxd4 {[%clk 0:02:41.1]} 9. Nxd4 {[%clk 0:02:47.9]} 9... Bc5 {[%clk
0:02:40.8]} 10. Nxc6 {[%clk 0:02:44.4]} 10... bxc6 {[%clk 0:02:41.7]} 11. Nd2
{[%clk 0:02:22.8]} 11... Bxf2+ {[%clk 0:01:35]} 12. Kxf2 {[%clk 0:02:13.1]}
12... Qb6+ {[%clk 0:01:04.3]} 13. Kf3 {[%clk 0:01:52.1]} 13... g5 {[%clk
0:01:00.4]} 14. Nc4 {[%clk 0:01:37.4]} 14... g4+ {[%clk 0:00:52.3]} 15. Ke2
{[%clk 0:01:05]} 15... Qc5 {[%clk 0:00:42.7]} 16. Ne3 {[%clk 0:00:32.3]} 16...
Nf4+ {[%clk 0:00:19.2]} 17. Kf2 {[%clk 0:00:32.6]} 17... g3+ {[%clk 0:00:18.8]}
18. hxg3 {[%clk 0:00:30.1]} 18... Nh5 {[%clk 0:00:14.8]} 19. Qf3 {[%clk
0:00:22.9]} 19... Rg8 {[%clk 0:00:13.6]} 20. b4 {[%clk 0:00:20.8]} 20... Qc3
{[%clk 0:00:11]} 21. Bb2 {[%clk 0:00:15.4]} 21... Qxb2 {[%clk 0:00:09.7]} 22.
Qxc6+ {[%clk 0:00:15]} 22... Kf8 {[%clk 0:00:07.6]} 23. Qxa8 {[%clk 0:00:14.5]}
23... Rxg3 {[%clk 0:00:06.3]} 24. Qxc8+ {[%clk 0:00:14.3]} 24... Kg7 {[%clk
0:00:06.9]} 25. Qc4 {[%clk 0:00:10.1]} 25... Rxe3 {[%clk 0:00:02.2]} 26. Rxe3
{[%clk 0:00:09.8]} 26... Qxa1 {[%clk 0:00:02.5]} 27. Rf3 {[%clk 0:00:09.3]} 1-0